[Event "Titled Tuesday Blitz July 4 Late 2023"]
[White "ElDivis"]
[Black "Kostiukov, Alexandr"]
[BlackFideId "14108100"]
[WhiteElo "2529"]
[BlackElo "2305"]
[Result "1-0"]
[Round "4"]
[TimeControl "180+2"]
[Date "2023.07.04"]
[WhiteClock "0:01:17"]
[BlackClock "0:00:00"]
[Board "100"]

1. Nf3 {[%clk 0:03:00]}  g6 {[%clk 0:02:58]} 2. d4 {[%clk 0:02:56]}  Bg7 {[%clk 0:02:56]} 3. e4 {[%clk 0:02:56]}  c5 {[%clk 0:02:56]} 4. Nc3 {[%clk 0:02:48]}  cxd4 {[%clk 0:02:56]} 5. Nxd4 {[%clk 0:02:49]}  Nc6 {[%clk 0:02:56]} 6. Be3 {[%clk 0:02:48]}  Nf6 {[%clk 0:02:56]} 7. Nb3 {[%clk 0:02:48]}  O-O {[%clk 0:02:56]} 8. Qd2 {[%clk 0:02:46]}  a5 {[%clk 0:02:51]} 9. a4 {[%clk 0:02:28]}  Nb4 {[%clk 0:02:49]} 10. O-O-O {[%clk 0:02:21]}  d5 {[%clk 0:02:34]} 11. exd5 {[%clk 0:02:18]}  Bf5 {[%clk 0:01:49]} 12. Na1 {[%clk 0:01:54]}  Rc8 {[%clk 0:01:43]} 13. Bd4 {[%clk 0:01:36]}  Nfxd5 {[%clk 0:00:43]} 14. Bxg7 {[%clk 0:01:30]}  Nxc3 {[%clk 0:00:20]} 15. Bxc3 {[%clk 0:01:22]}  Na2+ {[%clk 0:00:11]} 16. Kb1 {[%clk 0:01:21]}  Nxc3+ {[%clk 0:00:11]} 17. bxc3 {[%clk 0:01:20]}  Qb6+ {[%clk 0:00:00]} 18. Bb5 {[%clk 0:01:17]} 1-0


[Site "https://www.chess.com"]

[Event "Titled Tuesday Blitz July 4 Late 2023"]
[White "Belov, Alexei"]
[Black "Sanchez, Robert"]
[WhiteFideId "4128206"]
[BlackFideId "2034360"]
[WhiteElo "2522"]
[BlackElo "2204"]
[Result "1-0"]
[Round "4"]
[TimeControl "180+2"]
[Date "2023.07.04"]
[WhiteClock "0:00:48"]
[BlackClock "0:00:21"]
[Board "101"]

1. e4 {[%clk 0:02:59]}  e6 {[%clk 0:03:00]} 2. d4 {[%clk 0:02:58]}  d5 {[%clk 0:02:59]} 3. Nd2 {[%clk 0:02:58]}  Nf6 {[%clk 0:02:59]} 4. e5 {[%clk 0:02:58]}  Nfd7 {[%clk 0:02:59]} 5. Bd3 {[%clk 0:02:58]}  c5 {[%clk 0:02:59]} 6. c3 {[%clk 0:02:59]}  Nc6 {[%clk 0:02:59]} 7. Ne2 {[%clk 0:02:59]}  cxd4 {[%clk 0:02:59]} 8. cxd4 {[%clk 0:03:00]}  f6 {[%clk 0:03:00]} 9. exf6 {[%clk 0:03:00]}  Nxf6 {[%clk 0:03:01]} 10. Nf3 {[%clk 0:03:00]}  Bd6 {[%clk 0:03:01]} 11. O-O {[%clk 0:03:00]}  Qc7 {[%clk 0:03:02]} 12. Bg5 {[%clk 0:02:59]}  O-O {[%clk 0:03:02]} 13. Rc1 {[%clk 0:03:00]}  Bd7 {[%clk 0:02:56]} 14. Ng3 {[%clk 0:02:59]}  Ng4 {[%clk 0:02:25]} 15. Bb1 {[%clk 0:02:44]}  Rf7 {[%clk 0:02:13]} 16. h3 {[%clk 0:02:14]}  Nxf2 {[%clk 0:02:10]} 17. Rxf2 {[%clk 0:02:08]}  Bxg3 {[%clk 0:02:10]} 18. Rf1 {[%clk 0:02:07]}  Raf8 {[%clk 0:01:56]} 19. Be3 {[%clk 0:02:06]}  g6 {[%clk 0:01:52]} 20. Bh6 {[%clk 0:01:57]}  Qb6 {[%clk 0:01:35]} 21. Bxf8 {[%clk 0:01:56]}  Rxf8 {[%clk 0:01:35]} 22. Kh1 {[%clk 0:01:44]}  Qxb2 {[%clk 0:01:31]} 23. Ng5 {[%clk 0:01:40]}  Qxd4 {[%clk 0:01:17]} 24. Rxf8+ {[%clk 0:01:27]}  Kxf8 {[%clk 0:01:18]} 25. Nxh7+ {[%clk 0:01:09]}  Kg7 {[%clk 0:01:16]} 26. Qf3 {[%clk 0:01:01]}  Qf4 {[%clk 0:01:06]} 27. Rf1 {[%clk 0:01:00]}  Qxf3 {[%clk 0:00:41]} 28. Rxf3 {[%clk 0:01:00]}  Be5 {[%clk 0:00:36]} 29. Nf8 {[%clk 0:00:57]}  Bc8 {[%clk 0:00:27]} 30. Nxg6 {[%clk 0:00:53]}  Bf6 {[%clk 0:00:25]} 31. Nf4 {[%clk 0:00:50]}  d4 {[%clk 0:00:21]} 32. Nh5+ {[%clk 0:00:48]} 1-0


[Site "https://www.chess.com"]

[Event "Titled Tuesday Blitz July 4 Late 2023"]
[White "Mangialardo, Tiago Carvalho"]
[Black "ArchibaldCerveza29"]
[WhiteFideId "2130718"]
[WhiteElo "2124"]
[BlackElo "2518"]
[Result "0-1"]
[Round "4"]
[TimeControl "180+2"]
[Date "2023.07.04"]
[WhiteClock "0:00:00"]
[BlackClock "0:01:30"]
[Board "102"]

1. e4 {[%clk 0:03:00]}  e5 {[%clk 0:02:59]} 2. Nf3 {[%clk 0:03:00]}  Nc6 {[%clk 0:02:58]} 3. Bb5 {[%clk 0:03:00]}  g6 {[%clk 0:02:58]} 4. d4 {[%clk 0:02:43]}  exd4 {[%clk 0:02:57]} 5. Nxd4 {[%clk 0:02:40]}  Nge7 {[%clk 0:02:52]} 6. Be3 {[%clk 0:01:37]}  Bg7 {[%clk 0:02:49]} 7. Nc3 {[%clk 0:01:29]}  O-O {[%clk 0:02:48]} 8. Qd2 {[%clk 0:01:23]}  a6 {[%clk 0:02:31]} 9. Ba4 {[%clk 0:01:15]}  d6 {[%clk 0:02:28]} 10. O-O-O {[%clk 0:00:50]}  b5 {[%clk 0:02:21]} 11. Bb3 {[%clk 0:00:50]}  Bb7 {[%clk 0:02:21]} 12. f3 {[%clk 0:00:33]}  Na5 {[%clk 0:02:03]} 13. h4 {[%clk 0:00:20]}  c5 {[%clk 0:02:01]} 14. Ndxb5 {[%clk 0:00:15]}  axb5 {[%clk 0:01:59]} 15. Nxb5 {[%clk 0:00:15]}  Nxb3+ {[%clk 0:01:40]} 16. cxb3 {[%clk 0:00:11]}  Rxa2 {[%clk 0:01:40]} 17. Nxd6 {[%clk 0:00:03]}  Ba6 {[%clk 0:01:37]} 18. Bxc5 {[%clk 0:00:02]}  Rxb2 {[%clk 0:01:35]} 19. Qb4 {[%clk 0:00:02]}  Nc6 {[%clk 0:01:34]} 20. Qa4 {[%clk 0:00:00]}  Qa8 {[%clk 0:01:30]} 0-1


[Site "https://www.chess.com"]

[Event "Titled Tuesday Blitz July 4 Late 2023"]
[White "Vega Gutierrez, Sabrina"]
[Black "Galperin, Platon"]
[WhiteFideId "2219026"]
[BlackFideId "14165414"]
[WhiteElo "2403"]
[BlackElo "2957"]
[Result "0-1"]
[Round "4"]
[TimeControl "180+2"]
[Date "2023.07.04"]
[WhiteClock "0:00:56"]
[BlackClock "0:02:48"]
[Board "103"]

1. e4 {[%clk 0:03:00]}  c5 {[%clk 0:02:58]} 2. Nf3 {[%clk 0:03:00]}  e6 {[%clk 0:02:59]} 3. d4 {[%clk 0:03:00]}  cxd4 {[%clk 0:03:00]} 4. Nxd4 {[%clk 0:03:01]}  Nc6 {[%clk 0:03:00]} 5. Nc3 {[%clk 0:03:00]}  a6 {[%clk 0:03:01]} 6. f4 {[%clk 0:02:58]}  Nge7 {[%clk 0:02:55]} 7. Be3 {[%clk 0:02:56]}  Nxd4 {[%clk 0:02:55]} 8. Qxd4 {[%clk 0:02:56]}  Nc6 {[%clk 0:02:56]} 9. Qb6 {[%clk 0:02:57]}  Be7 {[%clk 0:02:52]} 10. O-O-O {[%clk 0:02:55]}  O-O {[%clk 0:02:52]} 11. g3 {[%clk 0:02:26]}  Qe8 {[%clk 0:02:49]} 12. Bg2 {[%clk 0:02:20]}  Bd8 {[%clk 0:02:50]} 13. Qc5 {[%clk 0:02:16]}  b5 {[%clk 0:02:49]} 14. e5 {[%clk 0:02:13]}  Be7 {[%clk 0:02:49]} 15. Qb6 {[%clk 0:02:04]}  Rb8 {[%clk 0:02:49]} 16. Bxc6 {[%clk 0:01:31]}  Rxb6 {[%clk 0:02:48]} 17. Bxb6 {[%clk 0:01:32]}  dxc6 {[%clk 0:02:48]} 18. Ne4 {[%clk 0:01:33]}  c5 {[%clk 0:02:48]} 19. Bxc5 {[%clk 0:01:32]}  Bxc5 {[%clk 0:02:49]} 20. Nxc5 {[%clk 0:01:31]}  Qc6 {[%clk 0:02:49]} 21. Nb3 {[%clk 0:01:29]}  Bb7 {[%clk 0:02:50]} 22. Rhe1 {[%clk 0:01:29]}  Rc8 {[%clk 0:02:49]} 23. Rd2 {[%clk 0:01:15]}  h5 {[%clk 0:02:46]} 24. Na5 {[%clk 0:01:09]}  Qc7 {[%clk 0:02:47]} 25. Nxb7 {[%clk 0:00:56]}  Qxb7 {[%clk 0:02:48]} 0-1


[Site "https://www.chess.com"]

[Event "Titled Tuesday Blitz July 4 Late 2023"]
[White "Arnold, Ken"]
[Black "Gorovets, Andrey"]
[WhiteFideId "2056836"]
[BlackFideId "13504037"]
[WhiteElo "2401"]
[BlackElo "2746"]
[Result "0-1"]
[Round "4"]
[TimeControl "180+2"]
[Date "2023.07.04"]
[WhiteClock "0:00:02"]
[BlackClock "0:01:11"]
[Board "104"]

1. d4 {[%clk 0:03:00]}  Nf6 {[%clk 0:02:56]} 2. Nf3 {[%clk 0:03:00]}  e6 {[%clk 0:02:56]} 3. c4 {[%clk 0:03:00]}  b6 {[%clk 0:02:56]} 4. g3 {[%clk 0:03:00]}  Ba6 {[%clk 0:02:53]} 5. e3 {[%clk 0:02:57]}  d5 {[%clk 0:02:50]} 6. cxd5 {[%clk 0:02:54]}  Bxf1 {[%clk 0:02:49]} 7. Kxf1 {[%clk 0:02:54]}  exd5 {[%clk 0:02:50]} 8. Nc3 {[%clk 0:02:53]}  Bd6 {[%clk 0:02:47]} 9. Kg2 {[%clk 0:02:52]}  O-O {[%clk 0:02:47]} 10. a3 {[%clk 0:02:49]}  a5 {[%clk 0:02:45]} 11. Qc2 {[%clk 0:02:47]}  c6 {[%clk 0:02:41]} 12. Qf5 {[%clk 0:02:43]}  Qe7 {[%clk 0:02:32]} 13. Bd2 {[%clk 0:02:40]}  Nbd7 {[%clk 0:02:30]} 14. h4 {[%clk 0:02:34]}  Rfd8 {[%clk 0:02:23]} 15. h5 {[%clk 0:02:26]}  a4 {[%clk 0:02:21]} 16. Rag1 {[%clk 0:02:17]}  b5 {[%clk 0:02:20]} 17. g4 {[%clk 0:02:10]}  Rf8 {[%clk 0:02:09]} 18. g5 {[%clk 0:02:08]}  Ne4 {[%clk 0:02:09]} 19. Nxe4 {[%clk 0:01:38]}  dxe4 {[%clk 0:02:10]} 20. Nh4 {[%clk 0:01:37]}  Nb6 {[%clk 0:02:02]} 21. Bc3 {[%clk 0:01:25]}  Nd5 {[%clk 0:02:01]} 22. Kf1 {[%clk 0:01:20]}  Rab8 {[%clk 0:01:58]} 23. Rg4 {[%clk 0:01:12]}  Rbe8 {[%clk 0:01:58]} 24. Rg2 {[%clk 0:00:40]}  Bxa3 {[%clk 0:01:53]} 25. Qg4 {[%clk 0:00:38]}  b4 {[%clk 0:01:44]} 26. g6 {[%clk 0:00:33]}  fxg6 {[%clk 0:01:44]} 27. hxg6 {[%clk 0:00:31]}  h6 {[%clk 0:01:44]} 28. Nf5 {[%clk 0:00:29]}  Qf6 {[%clk 0:01:34]} 29. Rxh6 {[%clk 0:00:19]}  gxh6 {[%clk 0:01:19]} 30. g7 {[%clk 0:00:11]}  Rf7 {[%clk 0:01:18]} 31. bxa3 {[%clk 0:00:02]}  Qxf5 {[%clk 0:01:11]} 0-1


[Site "https://www.chess.com"]

[Event "Titled Tuesday Blitz July 4 Late 2023"]
[White "Skvortsov, Andrei"]
[Black "Gabdushev, Ruslan"]
[WhiteFideId "24108600"]
[BlackFideId "4137833"]
[WhiteElo "2644"]
[BlackElo "2389"]
[Result "1-0"]
[Round "4"]
[TimeControl "180+2"]
[Date "2023.07.04"]
[WhiteClock "0:01:38"]
[BlackClock "0:00:00"]
[Board "106"]

1. Nf3 {[%clk 0:03:00]}  Nc6 {[%clk 0:02:56]} 2. d4 {[%clk 0:02:58]}  d6 {[%clk 0:02:56]} 3. e4 {[%clk 0:02:57]}  Bg4 {[%clk 0:02:55]} 4. c3 {[%clk 0:02:56]}  Nf6 {[%clk 0:02:54]} 5. h3 {[%clk 0:02:56]}  Bxf3 {[%clk 0:02:51]} 6. Qxf3 {[%clk 0:02:55]}  e5 {[%clk 0:02:51]} 7. Bb5 {[%clk 0:02:51]}  a6 {[%clk 0:02:42]} 8. Bxc6+ {[%clk 0:02:47]}  bxc6 {[%clk 0:02:43]} 9. O-O {[%clk 0:02:45]}  Be7 {[%clk 0:02:38]} 10. Rd1 {[%clk 0:02:44]}  Qb8 {[%clk 0:02:35]} 11. Na3 {[%clk 0:02:42]}  O-O {[%clk 0:02:25]} 12. dxe5 {[%clk 0:02:42]}  dxe5 {[%clk 0:02:24]} 13. Nc4 {[%clk 0:02:42]}  Bd6 {[%clk 0:02:24]} 14. Bg5 {[%clk 0:02:41]}  Nd7 {[%clk 0:01:55]} 15. b3 {[%clk 0:02:39]}  f6 {[%clk 0:01:50]} 16. Be3 {[%clk 0:02:39]}  Rd8 {[%clk 0:01:43]} 17. Rd3 {[%clk 0:02:36]}  Nf8 {[%clk 0:01:33]} 18. Rad1 {[%clk 0:02:36]}  Be7 {[%clk 0:01:27]} 19. Rxd8 {[%clk 0:02:35]}  Bxd8 {[%clk 0:01:27]} 20. Bc5 {[%clk 0:02:32]}  Ne6 {[%clk 0:01:21]} 21. Ba3 {[%clk 0:02:28]}  c5 {[%clk 0:01:11]} 22. Rd7 {[%clk 0:02:16]}  Qc8 {[%clk 0:01:06]} 23. Qd1 {[%clk 0:02:16]}  Nd4 {[%clk 0:00:34]} 24. Rxd8+ {[%clk 0:02:16]}  Qxd8 {[%clk 0:00:34]} 25. cxd4 {[%clk 0:02:17]}  cxd4 {[%clk 0:00:34]} 26. Nb2 {[%clk 0:02:15]}  a5 {[%clk 0:00:32]} 27. Qc2 {[%clk 0:02:11]}  Qd7 {[%clk 0:00:30]} 28. Qc4+ {[%clk 0:02:10]}  Kh8 {[%clk 0:00:29]} 29. Nd3 {[%clk 0:02:10]}  a4 {[%clk 0:00:27]} 30. Nc5 {[%clk 0:02:10]}  Qc6 {[%clk 0:00:27]} 31. bxa4 {[%clk 0:02:10]}  h6 {[%clk 0:00:23]} 32. f3 {[%clk 0:02:09]}  Kh7 {[%clk 0:00:23]} 33. Kf2 {[%clk 0:02:06]}  Rb8 {[%clk 0:00:21]} 34. Qc1 {[%clk 0:02:06]}  Qe8 {[%clk 0:00:17]} 35. a5 {[%clk 0:02:04]}  Qb5 {[%clk 0:00:16]} 36. Nb3 {[%clk 0:02:04]}  Rb7 {[%clk 0:00:15]} 37. Qf1 {[%clk 0:02:00]}  Qa4 {[%clk 0:00:14]} 38. Qc1 {[%clk 0:01:49]}  Rb5 {[%clk 0:00:14]} 39. h4 {[%clk 0:01:47]}  c5 {[%clk 0:00:10]} 40. Nxc5 {[%clk 0:01:44]}  Rxa5 {[%clk 0:00:00]} 41. Nxa4 {[%clk 0:01:38]} 1-0


[Site "https://www.chess.com"]

[Event "Titled Tuesday Blitz July 4 Late 2023"]
[White "HamedWafa4"]
[Black "Prieto Aranguren, Alain"]
[BlackFideId "2268906"]
[WhiteElo "2587"]
[BlackElo "2375"]
[Result "0-1"]
[Round "4"]
[TimeControl "180+2"]
[Date "2023.07.04"]
[WhiteClock "0:00:06"]
[BlackClock "0:00:04"]
[Board "109"]

1. e4 {[%clk 0:02:40]}  c6 {[%clk 0:02:59]} 2. d4 {[%clk 0:02:39]}  d5 {[%clk 0:02:59]} 3. Nc3 {[%clk 0:02:39]}  b5 {[%clk 0:02:58]} 4. exd5 {[%clk 0:02:32]}  b4 {[%clk 0:02:57]} 5. Ne4 {[%clk 0:02:33]}  cxd5 {[%clk 0:02:58]} 6. Nc5 {[%clk 0:02:34]}  Qb6 {[%clk 0:02:58]} 7. Nf3 {[%clk 0:02:33]}  Nd7 {[%clk 0:02:57]} 8. Nxd7 {[%clk 0:02:32]}  Bxd7 {[%clk 0:02:56]} 9. Bd3 {[%clk 0:02:31]}  Bb5 {[%clk 0:02:55]} 10. O-O {[%clk 0:02:30]}  Bxd3 {[%clk 0:02:55]} 11. Qxd3 {[%clk 0:02:30]}  Nf6 {[%clk 0:02:55]} 12. Bg5 {[%clk 0:02:28]}  e6 {[%clk 0:02:55]} 13. Bxf6 {[%clk 0:02:22]}  gxf6 {[%clk 0:02:54]} 14. c4 {[%clk 0:02:22]}  dxc4 {[%clk 0:02:48]} 15. Qxc4 {[%clk 0:02:21]}  Rd8 {[%clk 0:02:45]} 16. Rad1 {[%clk 0:02:17]}  Be7 {[%clk 0:02:43]} 17. d5 {[%clk 0:02:10]}  Rg8 {[%clk 0:02:33]} 18. Rfe1 {[%clk 0:02:02]}  Qb7 {[%clk 0:02:26]} 19. dxe6 {[%clk 0:01:56]}  fxe6 {[%clk 0:02:00]} 20. Qxe6 {[%clk 0:01:46]}  Rg6 {[%clk 0:01:50]} 21. Rxd8+ {[%clk 0:01:44]}  Kxd8 {[%clk 0:01:50]} 22. Rd1+ {[%clk 0:01:40]}  Ke8 {[%clk 0:01:45]} 23. Qd5 {[%clk 0:01:38]}  Qxd5 {[%clk 0:01:29]} 24. Rxd5 {[%clk 0:01:39]}  Rg4 {[%clk 0:01:27]} 25. Rd4 {[%clk 0:01:26]}  Rg7 {[%clk 0:01:11]} 26. Re4 {[%clk 0:01:20]}  Kd7 {[%clk 0:01:04]} 27. Nd4 {[%clk 0:01:18]}  Rg8 {[%clk 0:01:02]} 28. Nf5 {[%clk 0:01:16]}  Bc5 {[%clk 0:00:59]} 29. Rc4 {[%clk 0:01:15]}  Re8 {[%clk 0:00:38]} 30. Kf1 {[%clk 0:01:12]}  Kc6 {[%clk 0:00:36]} 31. h4 {[%clk 0:00:52]}  Kb5 {[%clk 0:00:29]} 32. Rf4 {[%clk 0:00:49]}  Rd8 {[%clk 0:00:25]} 33. Ne3 {[%clk 0:00:49]}  Rd2 {[%clk 0:00:21]} 34. b3 {[%clk 0:00:36]}  Rxa2 {[%clk 0:00:17]} 35. Nd5 {[%clk 0:00:27]}  a5 {[%clk 0:00:15]} 36. Nxf6 {[%clk 0:00:26]}  a4 {[%clk 0:00:13]} 37. Ne4 {[%clk 0:00:18]}  axb3 {[%clk 0:00:04]} 38. Rf5 {[%clk 0:00:17]}  b2 {[%clk 0:00:05]} 39. Rxc5+ {[%clk 0:00:17]}  Kb6 {[%clk 0:00:04]} 40. Nd2 {[%clk 0:00:07]}  Kxc5 {[%clk 0:00:04]} 41. g4 {[%clk 0:00:07]}  Ra1+ {[%clk 0:00:04]} 42. Ke2 {[%clk 0:00:07]}  b1=Q {[%clk 0:00:04]} 43. Nxb1 {[%clk 0:00:07]}  Rxb1 {[%clk 0:00:04]} 44. g5 {[%clk 0:00:08]}  b3 {[%clk 0:00:04]} 45. f4 {[%clk 0:00:08]}  b2 {[%clk 0:00:04]} 46. f5 {[%clk 0:00:06]}  Rh1 {[%clk 0:00:04]} 0-1


[Site "https://www.chess.com"]

[Event "Titled Tuesday Blitz July 4 Late 2023"]
[White "Cooklev, Steven"]
[Black "Vlassov, Nikolai"]
[WhiteFideId "2050552"]
[BlackFideId "4103360"]
[WhiteElo "2374"]
[BlackElo "2574"]
[Result "1/2-1/2"]
[Round "4"]
[TimeControl "180+2"]
[Date "2023.07.04"]
[WhiteClock "0:00:12"]
[BlackClock "0:00:03"]
[Board "110"]

1. e4 {[%clk 0:03:00]}  Nc6 {[%clk 0:02:59]} 2. Nc3 {[%clk 0:02:59]}  Nf6 {[%clk 0:02:59]} 3. d4 {[%clk 0:02:57]}  d5 {[%clk 0:02:59]} 4. e5 {[%clk 0:02:57]}  Nd7 {[%clk 0:02:58]} 5. f4 {[%clk 0:02:56]}  Nb6 {[%clk 0:02:58]} 6. Be3 {[%clk 0:02:48]}  Bf5 {[%clk 0:02:52]} 7. g4 {[%clk 0:02:37]}  Be4 {[%clk 0:02:51]} 8. Nxe4 {[%clk 0:02:36]}  dxe4 {[%clk 0:02:51]} 9. Bb5 {[%clk 0:02:23]}  e6 {[%clk 0:02:39]} 10. Qe2 {[%clk 0:02:15]}  Nd5 {[%clk 0:02:31]} 11. O-O-O {[%clk 0:02:10]}  a6 {[%clk 0:01:49]} 12. Bxc6+ {[%clk 0:01:53]}  bxc6 {[%clk 0:01:49]} 13. Bf2 {[%clk 0:01:32]}  Nxf4 {[%clk 0:01:39]} 14. Qxe4 {[%clk 0:01:32]}  Qd5 {[%clk 0:01:09]} 15. Qxf4 {[%clk 0:01:32]}  Qxh1 {[%clk 0:01:06]} 16. Nf3 {[%clk 0:01:32]}  Qg2 {[%clk 0:01:06]} 17. Ng5 {[%clk 0:01:32]}  O-O-O {[%clk 0:00:24]} 18. Nxf7 {[%clk 0:01:31]}  Be7 {[%clk 0:00:23]} 19. Nxh8 {[%clk 0:01:31]}  Rxh8 {[%clk 0:00:20]} 20. Qf7 {[%clk 0:01:17]}  Kd7 {[%clk 0:00:12]} 21. Bh4 {[%clk 0:01:14]}  Re8 {[%clk 0:00:10]} 22. Qxg7 {[%clk 0:00:59]}  Qxh2 {[%clk 0:00:10]} 23. Bf6 {[%clk 0:00:55]}  Qf4+ {[%clk 0:00:09]} 24. Kb1 {[%clk 0:00:54]}  Qf3 {[%clk 0:00:09]} 25. Rc1 {[%clk 0:00:31]}  Qe4 {[%clk 0:00:09]} 26. a3 {[%clk 0:00:23]}  Qxd4 {[%clk 0:00:09]} 27. Qxh7 {[%clk 0:00:23]}  Qc5 {[%clk 0:00:05]} 28. Rd1+ {[%clk 0:00:23]}  Kc8 {[%clk 0:00:05]} 29. Qf7 {[%clk 0:00:22]}  Rd8 {[%clk 0:00:04]} 30. Rxd8+ {[%clk 0:00:19]}  Bxd8 {[%clk 0:00:04]} 31. Qe8 {[%clk 0:00:17]}  Qd5 {[%clk 0:00:03]} 32. Bxd8 {[%clk 0:00:15]}  Kb7 {[%clk 0:00:03]} 33. Bf6 {[%clk 0:00:12]}  Qd1+ {[%clk 0:00:03]} 34. Ka2 {[%clk 0:00:12]}  Qxg4 {[%clk 0:00:03]} 35. Qe7 {[%clk 0:00:10]}  Qc4+ {[%clk 0:00:03]} 36. Kb1 {[%clk 0:00:10]}  Qf1+ {[%clk 0:00:03]} 37. Ka2 {[%clk 0:00:11]}  Qc4+ {[%clk 0:00:03]} 38. Kb1 {[%clk 0:00:11]}  Qf1+ {[%clk 0:00:03]} 39. Ka2 {[%clk 0:00:12]}  Qc4+ {[%clk 0:00:03]} 1/2-1/2


[Site "https://www.chess.com"]

[Event "Titled Tuesday Blitz July 4 Late 2023"]
[White "Dinosaurio_1975"]
[Black "BenchGM"]
[WhiteElo "2554"]
[BlackElo "2372"]
[Result "1/2-1/2"]
[Round "4"]
[TimeControl "180+2"]
[Date "2023.07.04"]
[WhiteClock "0:00:08"]
[BlackClock "0:00:03"]
[Board "112"]

1. e4 {[%clk 0:02:59]}  e6 {[%clk 0:02:59]} 2. d4 {[%clk 0:02:59]}  d5 {[%clk 0:02:59]} 3. e5 {[%clk 0:03:00]}  c5 {[%clk 0:02:59]} 4. c3 {[%clk 0:03:00]}  Nc6 {[%clk 0:03:00]} 5. Nf3 {[%clk 0:03:01]}  Bd7 {[%clk 0:03:00]} 6. Be2 {[%clk 0:03:01]}  f6 {[%clk 0:02:59]} 7. O-O {[%clk 0:03:00]}  fxe5 {[%clk 0:02:59]} 8. Nxe5 {[%clk 0:03:01]}  Nxe5 {[%clk 0:02:58]} 9. dxe5 {[%clk 0:03:02]}  Qc7 {[%clk 0:02:59]} 10. Re1 {[%clk 0:03:02]}  O-O-O {[%clk 0:02:59]} 11. Bf1 {[%clk 0:03:02]}  Ne7 {[%clk 0:02:48]} 12. Bf4 {[%clk 0:02:58]}  h6 {[%clk 0:02:24]} 13. b4 {[%clk 0:02:46]}  g5 {[%clk 0:02:23]} 14. Bg3 {[%clk 0:02:45]}  Nf5 {[%clk 0:02:20]} 15. a4 {[%clk 0:02:40]}  Bg7 {[%clk 0:02:10]} 16. Na3 {[%clk 0:01:32]}  h5 {[%clk 0:01:57]} 17. Nb5 {[%clk 0:00:51]}  Bxb5 {[%clk 0:01:54]} 18. axb5 {[%clk 0:00:52]}  h4 {[%clk 0:01:33]} 19. Rxa7 {[%clk 0:00:50]}  Qb6 {[%clk 0:01:04]} 20. Qa4 {[%clk 0:00:39]}  hxg3 {[%clk 0:00:57]} 21. bxc5 {[%clk 0:00:36]}  gxf2+ {[%clk 0:00:54]} 22. Kxf2 {[%clk 0:00:27]}  Qxc5+ {[%clk 0:00:52]} 23. Ke2 {[%clk 0:00:27]}  d4 {[%clk 0:00:18]} 24. b6 {[%clk 0:00:24]}  d3+ {[%clk 0:00:17]} 25. Kd2 {[%clk 0:00:08]}  Qf2+ {[%clk 0:00:14]} 26. Kd1 {[%clk 0:00:09]}  Qc2+ {[%clk 0:00:14]} 27. Qxc2 {[%clk 0:00:08]}  dxc2+ {[%clk 0:00:15]} 28. Kxc2 {[%clk 0:00:08]}  Rd5 {[%clk 0:00:13]} 29. Bc4 {[%clk 0:00:06]}  Rxe5 {[%clk 0:00:11]} 30. Bxe6+ {[%clk 0:00:06]}  Kd8 {[%clk 0:00:10]} 31. Rxe5 {[%clk 0:00:04]}  Bxe5 {[%clk 0:00:10]} 32. Bxf5 {[%clk 0:00:05]}  Rf8 {[%clk 0:00:09]} 33. Be4 {[%clk 0:00:05]}  Rf2+ {[%clk 0:00:09]} 34. Kb3 {[%clk 0:00:06]}  Re2 {[%clk 0:00:09]} 35. Bf3 {[%clk 0:00:06]}  Re3 {[%clk 0:00:09]} 36. Rxb7 {[%clk 0:00:06]}  Rxc3+ {[%clk 0:00:09]} 37. Kb4 {[%clk 0:00:07]}  Rc1 {[%clk 0:00:08]} 38. Rf7 {[%clk 0:00:07]}  Ke8 {[%clk 0:00:08]} 39. Rh7 {[%clk 0:00:05]}  Bd6+ {[%clk 0:00:09]} 40. Kb5 {[%clk 0:00:06]}  Be5 {[%clk 0:00:08]} 41. Ka6 {[%clk 0:00:06]}  Ra1+ {[%clk 0:00:07]} 42. Kb7 {[%clk 0:00:06]}  Kf8 {[%clk 0:00:07]} 43. Bc6 {[%clk 0:00:07]}  Kg8 {[%clk 0:00:07]} 44. Rd7 {[%clk 0:00:08]}  Rb1 {[%clk 0:00:06]} 45. Bd5+ {[%clk 0:00:08]}  Kf8 {[%clk 0:00:05]} 46. Bc6 {[%clk 0:00:07]}  Kg8 {[%clk 0:00:03]} 47. Ka7 {[%clk 0:00:07]}  Ra1+ {[%clk 0:00:03]} 48. Kb7 {[%clk 0:00:08]}  Rb1 {[%clk 0:00:03]} 1/2-1/2


[Site "https://www.chess.com"]

[Event "Titled Tuesday Blitz July 4 Late 2023"]
[White "Kanyamarala, Trisha"]
[Black "reevecanada"]
[WhiteFideId "45004722"]
[WhiteElo "2368"]
[BlackElo "2553"]
[Result "0-1"]
[Round "4"]
[TimeControl "180+2"]
[Date "2023.07.04"]
[WhiteClock "0:00:00"]
[BlackClock "0:00:53"]
[Board "113"]

1. c4 {[%clk 0:03:00]}  c5 {[%clk 0:02:59]} 2. Nc3 {[%clk 0:02:59]}  Nc6 {[%clk 0:02:59]} 3. g3 {[%clk 0:02:59]}  g6 {[%clk 0:02:58]} 4. Bg2 {[%clk 0:03:00]}  Bg7 {[%clk 0:02:58]} 5. Nf3 {[%clk 0:03:01]}  Nf6 {[%clk 0:02:58]} 6. O-O {[%clk 0:03:01]}  O-O {[%clk 0:02:58]} 7. a3 {[%clk 0:03:00]}  a6 {[%clk 0:02:57]} 8. Rb1 {[%clk 0:02:59]}  Qc7 {[%clk 0:02:55]} 9. b4 {[%clk 0:02:56]}  d6 {[%clk 0:02:54]} 10. d3 {[%clk 0:02:45]}  Nd4 {[%clk 0:02:47]} 11. bxc5 {[%clk 0:02:36]}  dxc5 {[%clk 0:02:45]} 12. Bf4 {[%clk 0:02:28]}  Nxf3+ {[%clk 0:02:44]} 13. Bxf3 {[%clk 0:02:27]}  e5 {[%clk 0:02:44]} 14. Bg5 {[%clk 0:02:27]}  Rb8 {[%clk 0:02:42]} 15. Bxf6 {[%clk 0:02:18]}  Bxf6 {[%clk 0:02:39]} 16. Nd5 {[%clk 0:02:19]}  Qd8 {[%clk 0:02:38]} 17. Nxf6+ {[%clk 0:02:11]}  Qxf6 {[%clk 0:02:36]} 18. Qd2 {[%clk 0:02:07]}  Qd6 {[%clk 0:02:25]} 19. Rb3 {[%clk 0:02:03]}  b5 {[%clk 0:02:20]} 20. Rfb1 {[%clk 0:02:00]}  Bd7 {[%clk 0:02:18]} 21. Bd5 {[%clk 0:01:21]}  Rb6 {[%clk 0:02:07]} 22. Qe3 {[%clk 0:01:18]}  Rfb8 {[%clk 0:02:06]} 23. Rc1 {[%clk 0:01:16]}  a5 {[%clk 0:02:02]} 24. Qf3 {[%clk 0:01:10]}  Be6 {[%clk 0:01:59]} 25. Bxe6 {[%clk 0:01:06]}  Qxe6 {[%clk 0:02:00]} 26. Rxb5 {[%clk 0:01:05]}  Rxb5 {[%clk 0:01:59]} 27. cxb5 {[%clk 0:01:06]}  Rxb5 {[%clk 0:01:59]} 28. Qa8+ {[%clk 0:01:01]}  Kg7 {[%clk 0:01:58]} 29. Qa7 {[%clk 0:01:00]}  Qc6 {[%clk 0:01:55]} 30. Qe7 {[%clk 0:00:58]}  Qf6 {[%clk 0:01:51]} 31. Qc7 {[%clk 0:00:53]}  Rb2 {[%clk 0:01:49]} 32. Kf1 {[%clk 0:00:47]}  Qf5 {[%clk 0:01:07]} 33. Qxc5 {[%clk 0:00:42]}  Qh3+ {[%clk 0:01:05]} 34. Ke1 {[%clk 0:00:33]}  Qh5 {[%clk 0:01:03]} 35. g4 {[%clk 0:00:23]}  Qxh2 {[%clk 0:01:01]} 36. Rc2 {[%clk 0:00:10]}  Rxc2 {[%clk 0:01:00]} 37. Qxc2 {[%clk 0:00:09]}  Qg1+ {[%clk 0:01:00]} 38. Kd2 {[%clk 0:00:10]}  Qxf2 {[%clk 0:01:00]} 39. Qc3 {[%clk 0:00:09]}  Qf4+ {[%clk 0:01:00]} 40. Kc2 {[%clk 0:00:09]}  h5 {[%clk 0:00:58]} 41. gxh5 {[%clk 0:00:07]}  gxh5 {[%clk 0:00:59]} 42. Qxa5 {[%clk 0:00:07]}  h4 {[%clk 0:00:59]} 43. Qa8 {[%clk 0:00:07]}  h3 {[%clk 0:00:59]} 44. Qh1 {[%clk 0:00:07]}  Qg3 {[%clk 0:00:59]} 45. a4 {[%clk 0:00:05]}  Qg2 {[%clk 0:00:58]} 46. Qa1 {[%clk 0:00:03]}  f6 {[%clk 0:00:59]} 47. Qc3 {[%clk 0:00:02]}  h2 {[%clk 0:00:57]} 48. Qc7+ {[%clk 0:00:02]}  Kg6 {[%clk 0:00:57]} 49. Qc8 {[%clk 0:00:01]}  Qxe2+ {[%clk 0:00:53]} 50. Kc3 {[%clk 0:00:01]}  Qe1+ {[%clk 0:00:53]} 51. Kb3 {[%clk 0:00:01]}  Qb1+ {[%clk 0:00:53]} 52. Ka3 {[%clk 0:00:00]}  Qxd3+ {[%clk 0:00:53]} 0-1


[Site "https://www.chess.com"]